fUSD/lending_fUSD_20250112
["ID","MTS","AMOUNT","RATE_DAILY","PERIOD"]
[348607331,1736669446208,-640.21,0.00010364,2]
[348607332,1736669446217,-556.25,0.00010364,2]
[348607333,1736669446227,-500.0,0.00010364,2]
[348607334,1736669446236,-1774.87,0.00010364,2]
[348607335,1736669446246,-500.0,0.00010364,2]
[348607336,1736669446255,-500.0,0.00010364,2]
[348607337,1736669446264,-500.0,0.00010364,2]
[348607338,1736669446273,-685.75,0.00010364,2]
[348607339,1736669446282,-500.0,0.00010364,2]
[348607340,1736669446291,-500.0,0.00010364,2]
[348607341,1736669446300,-780.67,0.00010364,2]
[348607342,1736669446309,-537.44,0.00010364,2]
[348607343,1736669446318,-2862.01,0.00010364,2]
[348607344,1736669446327,-500.0,0.00010364,2]
[348607345,1736669446337,-517.18,0.00010364,2]
[348607346,1736669446347,-626.48,0.00010364,2]
[348607347,1736669446355,-991.88,0.00010364,2]
[348607348,1736669446364,-587.07,0.00010364,2]
[348607349,1736669446374,-500.0,0.00010364,2]
[348607350,1736669446384,-2077.25,0.00010364,2]
[348607351,1736669446394,-500.0,0.00010364,2]
[348607352,1736669446403,-500.0,0.00010364,2]
[348607353,1736669446413,-500.0,0.00010364,2]
[348607354,1736669446422,-500.0,0.00010364,2]
[348607355,1736669446431,-6553.7,0.00010364,2]
[348607356,1736669446440,-500.0,0.00010364,2]
[348607357,1736669446450,-551.14,0.00010364,2]
[348607358,1736669446459,-628.63834641,0.00010364,2]
[348607359,1736669446470,-500.0,0.00010364,2]
[348607360,1736669446479,-500.0,0.00010364,2]
[348607361,1736669446487,-500.0,0.00010364,2]
[348607362,1736669446496,-649.27,0.00010364,2]
[348607363,1736669446506,-743.84,0.00010364,2]
[348607364,1736669446515,-500.0,0.00010364,2]
[348607365,1736669446525,-1171.85,0.00010364,2]
[348607366,1736669446534,-774.74,0.00010364,2]
[348607367,1736669446544,-500.0,0.00010364,2]
[348607368,1736669446554,-853.22,0.00010364,2]
[348607369,1736669446563,-500.0,0.00010364,2]
[348607370,1736669446573,-500.0,0.00010364,2]
[348607371,1736669446582,-500.0,0.00010364,2]
[348607372,1736669446591,-1679.46,0.00010364,2]
[348607373,1736669446600,-500.0,0.00010364,2]
[348607374,1736669446610,-3681.72,0.00010364,2]
[348607375,1736669446619,-759.31,0.00010364,2]
[348607376,1736669446628,-500.0,0.00010364,2]
[348607377,1736669446637,-4220.41,0.00010364,2]
[348607378,1736669446646,-500.0,0.00010364,2]
[348607379,1736669446655,-500.0,0.00010364,2]
[348607380,1736669446664,-506.25,0.00010364,2]
[348607381,1736669446673,-500.0,0.00010364,2]
[348607382,1736669446682,-500.0,0.00010364,2]
[348607383,1736669446691,-500.0,0.00010364,2]
[348607384,1736669446699,-1107.46,0.00010364,2]
[348607385,1736669446708,-1384.05813974,0.00010364,2]
[348607386,1736669447213,-557.84267215,9.987e-05,2]
[348607387,1736669447223,-598.58499398,0.00010364,2]
[348607388,1736669931558,1083.45,8.219e-05,2]
[348607419,1736670631938,-250.0,9.277e-05,2]
[348607420,1736670631947,-592.43,9.289e-05,2]
[348607421,1736670631957,-294.78303064,9.362e-05,2]
[348607422,1736670632003,-222.68696936,9.362e-05,2]
[348607423,1736670632012,-1000.0,9.371e-05,2]
[348607424,1736670632021,-300.0,9.765e-05,2]
[348607425,1736670632030,-910.82681967,9.766e-05,2]
[348607426,1736670632056,-9106.17318033,9.766e-05,2]
[348607427,1736670632065,-400.0,9.8e-05,3]
[348607428,1736670632077,-150.0,9.863e-05,2]
[348607429,1736670632088,-150.0,9.863e-05,2]
[348607430,1736670632098,-150.0,9.863e-05,2]
[348607431,1736670632107,-150.0,9.863e-05,2]
[348607432,1736670632116,-150.0,9.896e-05,2]
[348607433,1736670632126,-5000.0,9.9e-05,2]
[348607434,1736670632135,-800.0,9.9e-05,3]
[348607435,1736670632144,-150.0,9.929e-05,2]
[348607436,1736670632155,-150.0,9.932e-05,2]
[348607437,1736670632164,-150.0,9.941e-05,2]
[348607438,1736670632174,-150.0,9.963e-05,2]
[348607439,1736670632183,-159.83968,9.973e-05,2]
[348607440,1736670632193,-160.06367825,9.973e-05,2]
[348607441,1736670632202,-500.0,9.973e-05,2]
[348607442,1736670632211,-2190.58035946,9.993e-05,2]
[348607443,1736670632221,-150.0,9.996e-05,2]
[348607444,1736670632230,-150.0,9.998e-05,2]
[348607445,1736670632239,-1148.55,9.999e-05,2]
[348607446,1736670632248,-948.08,9.999e-05,2]
[348607447,1736670632258,-848.37,9.999e-05,2]
[348607448,1736670632267,-1612.6,9.999e-05,2]
[348607449,1736670632277,-500.0,9.999e-05,2]
[348607450,1736670632286,-1978.55,9.999e-05,2]
[348607451,1736670632296,-2916.02,9.999e-05,2]
[348607452,1736670632305,-1772.17,9.999e-05,2]
[348607453,1736670632315,-1025.63,9.999e-05,2]
[348607454,1736670632325,-500.0,9.999e-05,2]
[348607455,1736670632334,-1223.72,9.999e-05,2]
[348607456,1736670632343,-3054.5,9.999e-05,2]
[348607457,1736670632353,-743.55,9.999e-05,2]
[348607458,1736670632362,-500.0,9.999e-05,2]
[348607459,1736670632371,-500.0,9.999e-05,2]
[348607460,1736670632381,-1118.07,9.999e-05,2]
[348607461,1736670632390,-1540.67,9.999e-05,2]
[348607462,1736670632399,-500.0,9.999e-05,2]
[348607463,1736670632408,-523.82,9.999e-05,2]
[348607464,1736670632417,-1980.18,9.999e-05,2]
[348607465,1736670632427,-402.21688497,9.999e-05,2]
[348607466,1736670632440,-179.39108854,9.999e-05,2]
[348607467,1736670632450,-150.0,0.0001,2]
[348607468,1736670632459,-171.0,0.0001,2]
[348607469,1736670632468,-164.2,0.0001,2]
[348607470,1736670632478,-61097.36539351,0.0001,2]
[348607471,1736670632511,-3351.73,0.0001,2]
[348607472,1736670632547,-484.10308559,0.0001,2]
[348607473,1736670632558,-1947.82960489,0.0001,2]
[348607497,1736670637779,-500.0,9.999e-05,2]
[348607499,1736670637788,-500.0,9.999e-05,2]
[348607500,1736670637797,-14687.83628118,0.0001,2]
[348607501,1736670637931,-23177.67840751,0.0001,2]
[348607502,1736670638210,-918.454597,0.0001,2]
[348607503,1736670638222,-653.894593,0.0001,2]
[348607522,1736670639856,-500.0,9.999e-05,2]
[348607523,1736670639867,-1205.5582732,0.0001,2]
[348607524,1736670640021,-251178.21368355,0.0001,2]
[348607525,1736670640081,-289.15000193,0.0001,2]
[348607526,1736670640138,-299.8200351,0.0001,2]
[348607527,1736670640197,-2394.88114543,0.0001,2]
[348607528,1736670640209,-1690.18627664,0.0001,2]
[348607529,1736670640220,-392.94,0.0001,2]
[348607531,1736670642903,-1673.75,0.0001,2]
[348607532,1736670642961,-2542.74330033,0.0001,2]
[348607533,1736670642973,-1043.6,0.0001,2]
[348607534,1736670642984,-413.65669967,0.0001,2]
[348607535,1736670642995,-965.02382423,0.0001,2]
[348607536,1736670643133,-373775.09951881,0.0001,2]
[348607542,1736670645921,-953.83,9.999e-05,2]
[348607543,1736670645931,-35566.16999815,0.0001,2]
[348607544,1736670646032,-292.80640999,0.0001,2]
[348607545,1736670646093,-307.15092055,0.0001,2]
[348607546,1736670646104,-18912.91508127,0.0001,2]
[348607552,1736671165252,1029.27,8.219e-05,2]
[348607553,1736671358031,500.0,9.999e-05,7]
[348607558,1736671738162,1000.0,8.396e-05,2]
[348607561,1736671759687,1102.93,8.4e-05,2]
[348607570,1736671835582,-718.949423,8.955e-05,2]
[348607571,1736671835592,-150.0,9e-05,2]
[348607572,1736671835602,-150.0,9e-05,2]
[348607573,1736671835611,-150.0,9e-05,2]
[348607574,1736671835621,-186.98192032,9e-05,2]
[348607575,1736671835630,-150.0,9e-05,2]
[348607576,1736671835640,-150.0,9e-05,2]
[348607577,1736671835650,-250.0,9.012e-05,2]
[348607578,1736671835659,-150.0,9.017e-05,2]
[348607579,1736671835670,-150.0,9.032e-05,2]
[348607580,1736671835679,-150.0,9.033e-05,2]
[348607581,1736671835689,-150.0,9.034e-05,2]
[348607582,1736671835698,-175.15372576,9.041e-05,2]
[348607583,1736671835797,-284.77627424,9.041e-05,2]
[348607584,1736671835807,-401.39,9.047e-05,2]
[348607585,1736671835816,-395.72372576,9.048e-05,2]
[348607586,1736671835993,-1026.84627424,9.048e-05,2]
[348607587,1736671836003,-973.15372576,9.048e-05,2]
[348607593,1736671838043,-1026.84627424,9.048e-05,2]
[348607594,1736671838053,-123.19670126,9.05e-05,2]
[348607595,1736671838135,-26.80329874,9.05e-05,2]
[348607596,1736671838145,-125.00991251,9.052e-05,2]
[348607597,1736671838169,-124.99008749,9.052e-05,2]
[348607598,1736671838179,-150.0,9.065e-05,2]
[348607599,1736671838188,-150.0,9.067e-05,2]
[348607600,1736671838197,-150.0,9.069e-05,2]
[348607601,1736671838206,-150.0,9.083e-05,2]
[348607602,1736671838215,-150.0,9.097e-05,2]
[348607603,1736671838224,-150.0,9.1e-05,2]
[348607604,1736671838233,-150.0,9.103e-05,2]
[348607605,1736671838242,-150.0,9.117e-05,2]
[348607606,1736671838251,-150.0,9.129e-05,2]
[348607607,1736671838263,-150.0,9.133e-05,2]
[348607608,1736671838273,-150.0,9.138e-05,2]
[348607609,1736671838282,-150.0,9.15e-05,2]
[348607610,1736671838292,-150.0,9.15e-05,2]
[348607611,1736671838301,-150.0,9.161e-05,2]
[348607612,1736671838310,-150.0,9.167e-05,2]
[348607613,1736671838320,-150.0,9.172e-05,2]
[348607614,1736671838329,-150.0,9.183e-05,2]
[348607615,1736671838339,-150.0,9.194e-05,2]
[348607616,1736671838348,-150.0,9.2e-05,2]
[348607617,1736671838357,-150.0,9.2e-05,2]
[348607618,1736671838367,-150.0,9.207e-05,2]
[348607619,1736671838377,-150.0,9.217e-05,2]
[348607620,1736671838387,-150.0,9.226e-05,2]
[348607621,1736671838398,-150.0,9.233e-05,2]
[348607622,1736671838408,-150.0,9.241e-05,2]
[348607623,1736671838420,-150.0,9.25e-05,2]
[348607624,1736671838429,-150.0,9.258e-05,2]
[348607625,1736671838438,-150.0,9.267e-05,2]
[348607626,1736671838448,-150.0,9.276e-05,2]
[348607627,1736671838459,-150.0,9.283e-05,2]
[348607628,1736671838469,-150.0,9.29e-05,2]
[348607629,1736671838479,-150.0,9.3e-05,2]
[348607630,1736671838487,-150.0,9.31e-05,2]
[348607631,1736671838496,-150.0,9.317e-05,2]
[348607632,1736671838505,-150.0,9.323e-05,2]
[348607633,1736671838515,-150.0,9.333e-05,2]
[348607634,1736671838524,-150.0,9.345e-05,2]
[348607635,1736671838536,-150.0,9.35e-05,2]
[348607636,1736671838545,-150.0,9.355e-05,2]
[348607638,1736671838554,-150.0,9.367e-05,2]
[348607640,1736671838563,-150.0,9.379e-05,2]
[348607642,1736671838572,-150.0,9.383e-05,2]
[348607644,1736671838581,-150.0,9.387e-05,2]
[348607646,1736671838590,-150.0,9.4e-05,2]
[348607648,1736671838599,-150.0,9.4e-05,2]
[348607650,1736671838608,-150.0,9.414e-05,2]
[348607652,1736671838617,-150.0,9.417e-05,2]
[348607653,1736671838626,-150.0,9.419e-05,2]
[348607656,1736671838635,-150.0,9.433e-05,2]
[348607657,1736671838644,-1000.0,9.445e-05,2]
[348607659,1736671838653,-150.0,9.448e-05,2]
[348607661,1736671838663,-150.0,9.45e-05,2]
[348607663,1736671838672,-150.0,9.452e-05,2]
[348607666,1736671838681,-150.0,9.467e-05,2]
[348607668,1736671838691,-150.0,9.483e-05,2]
[348607670,1736671838700,-150.0,9.483e-05,2]
[348607671,1736671838709,-150.0,9.484e-05,2]
[348607673,1736671838718,-150.0,9.5e-05,2]
[348607675,1736671838727,-150.0,9.516e-05,2]
[348607677,1736671838737,-150.0,9.517e-05,2]
[348607679,1736671838746,-150.0,9.517e-05,2]
[348607681,1736671838755,-150.0,9.533e-05,2]
[348607683,1736671838765,-150.0,9.548e-05,2]
[348607685,1736671838774,-150.0,9.55e-05,2]
[348607687,1736671838783,-150.0,9.552e-05,2]
[348607689,1736671838792,-150.0,9.567e-05,2]
[348607691,1736671838801,-150.0,9.581e-05,2]
[348607693,1736671838811,-150.0,9.583e-05,2]
[348607695,1736671838820,-150.0,9.586e-05,2]
[348607697,1736671838829,-150.0,9.6e-05,2]
[348607699,1736671838838,-150.0,9.6e-05,2]
[348607701,1736671838847,-800.0,9.6e-05,3]
[348607703,1736671838857,-150.0,9.613e-05,2]
[348607705,1736671838866,-150.0,9.617e-05,2]
[348607707,1736671838875,-150.0,9.621e-05,2]
[348607709,1736671838884,-150.0,9.633e-05,2]
[348607711,1736671838894,-150.0,9.645e-05,2]
[348607713,1736671838902,-150.0,9.65e-05,2]
[348607715,1736671838912,-150.0,9.655e-05,2]
[348607717,1736671838921,-150.0,9.667e-05,2]
[348607719,1736671838931,-150.0,9.677e-05,2]
[348607721,1736671838940,-150.0,9.683e-05,2]
[348607723,1736671838950,-150.0,9.69e-05,2]
[348607725,1736671838962,-150.0,9.7e-05,2]
[348607727,1736671838971,-1600.0,9.7e-05,3]
[348607753,1736671839208,-150.0,9.71e-05,2]
[348607755,1736671839218,-150.0,9.717e-05,2]
[348607757,1736671839227,-150.0,9.724e-05,2]
[348607759,1736671839237,-150.0,9.733e-05,2]
[348607761,1736671839247,-150.0,9.742e-05,2]
[348607763,1736671839256,-150.0,9.75e-05,2]
[348607765,1736671839266,-150.0,9.759e-05,2]
[348607767,1736671839275,-150.0,9.767e-05,2]
[348607769,1736671839284,-150.0,9.774e-05,2]
[348607771,1736671839293,-150.0,9.783e-05,2]
[348607773,1736671839303,-150.0,9.793e-05,2]
[348607775,1736671839311,-150.0,9.8e-05,2]
[348607777,1736671839321,-150.0,9.8e-05,2]
[348607779,1736671839331,-2400.0,9.8e-05,3]
[348607781,1736671839341,-150.0,9.806e-05,2]
[348607782,1736671839351,-150.0,9.817e-05,2]
[348607783,1736671839359,-150.0,9.828e-05,2]
[348607784,1736671839368,-150.0,9.833e-05,2]
[348607785,1736671839378,-150.0,9.839e-05,2]
[348607786,1736671839387,-150.0,9.85e-05,2]
[348607787,1736671839396,-150.0,9.862e-05,2]
[348607788,1736671839405,-150.0,9.867e-05,2]
[348607789,1736671839415,-150.0,9.871e-05,2]
[348607790,1736671839424,-3655.0639,9.88e-05,2]
[348607791,1736671839433,-150.0,9.883e-05,2]
[348607792,1736671839443,-150.0,9.897e-05,2]
[348607793,1736671839452,-500.0,9.9e-05,2]
[348607794,1736671839461,-3344.8682,9.9e-05,2]
[348607795,1736671839470,-300.5491,9.9e-05,2]
[348607796,1736671839479,-258.6379,9.9e-05,2]
[348607797,1736671839489,-3000.0,9.9e-05,2]
[348607798,1736671839498,-150.0,9.9e-05,2]
[348607799,1736671839507,-1385.2816,9.9e-05,2]
[348607800,1736671839517,-150.0,9.9e-05,2]
[348607801,1736671839526,-28474.0,9.9e-05,2]
[348607802,1736671839535,-3200.0,9.9e-05,3]
[348607803,1736671839544,-150.0,9.903e-05,2]
[348607804,1736671839554,-376.74776218,9.91e-05,2]
[348607805,1736671839563,-150.0,9.917e-05,2]
[348607806,1736671839572,-150.0,9.931e-05,2]
[348607807,1736671839582,-150.0,9.933e-05,2]
[348607808,1736671839598,-150.0,9.935e-05,2]
[348607809,1736671839607,-150.0,9.95e-05,2]
[348607810,1736671839617,-150.0,9.966e-05,2]
[348607811,1736671839627,-150.0,9.967e-05,2]
[348607812,1736671839638,-150.0,9.968e-05,2]
[348607813,1736671839647,-5378.0,9.973e-05,2]
[348607814,1736671839657,-501.30651244,9.973e-05,2]
[348607815,1736671839667,-500.0,9.973e-05,2]
[348607816,1736671839677,-165.84039268,9.973e-05,2]
[348607817,1736671839687,-500.43394473,9.973e-05,2]
[348607818,1736671839696,-159.83968,9.973e-05,2]
[348607819,1736671839706,-500.0,9.973e-05,2]
[348607820,1736671839716,-107491.86204533,9.98e-05,2]
[348607821,1736671839726,-3068.94859067,9.983e-05,2]
[348607822,1736671839736,-150.0,9.983e-05,2]
[348607823,1736671839745,-3068.94859053,9.984e-05,2]
[348607824,1736671839755,-3068.94859053,9.985e-05,2]
[348607825,1736671839765,-3068.94859053,9.986e-05,2]
[348607826,1736671839775,-3068.94859053,9.987e-05,2]
[348607827,1736671839784,-3068.94859053,9.987e-05,2]
[348607828,1736671839793,-3068.94859053,9.988e-05,2]
[348607829,1736671839803,-3068.94859053,9.989e-05,2]
[348607830,1736671839812,-500.0,9.997e-05,2]
[348607831,1736671839821,-2058.17,9.997e-05,2]
[348607832,1736671839831,-3151.45,9.997e-05,2]
[348607833,1736671839840,-1843.77,9.997e-05,2]
[348607834,1736671839849,-500.0,9.997e-05,2]
[348607835,1736671839858,-1273.16,9.997e-05,2]
[348607836,1736671839868,-3181.09,9.997e-05,2]
[348607837,1736671839877,-500.0,9.997e-05,2]
[348607838,1736671839886,-500.0,9.997e-05,2]
[348607839,1736671839896,-1163.25,9.997e-05,2]
[348607840,1736671839905,-976.1,9.997e-05,2]
[348607841,1736671839914,-500.0,9.997e-05,2]
[348607842,1736671839924,-568.42,9.997e-05,2]
[348607844,1736671839933,-500.0,9.997e-05,2]
[348607845,1736671839943,-500.0,9.997e-05,2]
[348607846,1736671839952,-2065.15,9.997e-05,2]
[348607847,1736671839961,-500.0,9.997e-05,2]
[348607848,1736671839972,-500.0,9.997e-05,2]
[348607849,1736671839981,-3390.084,9.998e-05,2]
[348607850,1736671839991,-167.885,9.998e-05,2]
[348607851,1736671840000,-1825.4836329,9.998e-05,2]
[348607852,1736671840010,-1241.07,9.998e-05,2]
[348607853,1736671840022,-986.41,9.998e-05,2]
[348607854,1736671840032,-882.91,9.998e-05,2]
[348607855,1736671840042,-1685.08,9.998e-05,2]
[348607856,1736671840053,-1070.08,9.998e-05,2]
[348607857,1736671840063,-502.45473375,9.998e-05,2]
[348607858,1736671840072,-500.0,9.998e-05,2]
[348607859,1736671840081,-500.0,9.998e-05,2]
[348607860,1736671840091,-500.0,9.998e-05,2]
[348607861,1736671840099,-500.0,9.998e-05,2]
[348607862,1736671840109,-500.0,9.998e-05,2]
[348607863,1736671840118,-358.4969659,9.998e-05,2]
[348607864,1736671840127,-775.78,9.998e-05,2]
[348607865,1736671840137,-507.20683774,9.998e-05,2]
[348607866,1736671840146,-500.0,9.998e-05,2]
[348607867,1736671840155,-500.0,9.998e-05,2]
[348607868,1736671840165,-1605.51,9.998e-05,2]
[348607869,1736671840174,-500.0,9.998e-05,2]
[348607870,1736671840183,-979.7,9.998e-05,2]
[348607871,1736671840192,-500.0,9.998e-05,2]
[348607872,1736671840203,-3517.89,9.998e-05,2]
[348607873,1736671840212,-1257.69,9.998e-05,2]
[348607874,1736671840222,-2699.94,9.998e-05,2]
[348607875,1736671840231,-2199.06,9.998e-05,2]
[348607876,1736671840241,-500.0,9.998e-05,2]
[348607877,1736671840250,-500.0,9.998e-05,2]
[348607878,1736671840259,-8232.98,9.998e-05,2]
[348607879,1736671840270,-500.0,9.998e-05,2]
[348607880,1736671840279,-500.0,9.998e-05,2]
[348607881,1736671840289,-821.54,9.998e-05,2]
[348607882,1736671840298,-1727.52,9.998e-05,2]
[348607883,1736671840307,-500.0,9.998e-05,2]
[348607884,1736671840317,-1177.65,9.998e-05,2]
[348607885,1736671840326,-500.0,9.998e-05,2]
[348607886,1736671840335,-500.0,9.998e-05,2]
[348607887,1736671840345,-500.0,9.998e-05,2]
[348607888,1736671840354,-779.398152,9.998e-05,2]
[348607889,1736671840364,-545.63,9.998e-05,2]
[348607890,1736671840373,-2125.07,9.998e-05,2]
[348607891,1736671840382,-1457.8,9.998e-05,2]
[348607892,1736671840391,-155.490197,9.998e-05,2]
[348607893,1736671840400,-500.0,9.998e-05,2]
[348607894,1736671840409,-500.0,9.998e-05,2]
[348607895,1736671840419,-509.14,9.998e-05,2]
[348607896,1736671840428,-518.26652455,9.998e-05,2]
[348607897,1736671840437,-500.0,9.998e-05,2]
[348607898,1736671840447,-897.82,9.998e-05,2]
[348607899,1736671840458,-508.54313898,9.998e-05,2]
[348607900,1736671840468,-589.15084,9.998e-05,2]
[348607901,1736671840477,-1340.03,9.998e-05,2]
[348607902,1736671840486,-500.0,9.998e-05,2]
[348607903,1736671840495,-500.0,9.998e-05,2]
[348607904,1736671840505,-500.0,9.998e-05,2]
[348607905,1736671840514,-500.0,9.998e-05,2]
[348607906,1736671840524,-873.86,9.998e-05,2]
[348607907,1736671840533,-3441.3,9.998e-05,2]
[348607909,1736671840543,-500.0,9.998e-05,2]
[348607911,1736671840552,-1915.32,9.998e-05,2]
[348607913,1736671840562,-583.59427689,9.998e-05,2]
[348607915,1736671840571,-518.06004282,9.998e-05,2]
[348607917,1736671840580,-500.0,9.998e-05,2]
[348607919,1736671840589,-500.0,9.998e-05,2]
[348607921,1736671840599,-1066.81,9.998e-05,2]
[348607923,1736671840608,-1456.29,9.998e-05,2]
[348607925,1736671840618,-640.76,9.998e-05,2]
[348607927,1736671840627,-502.45355514,9.998e-05,2]
[348607929,1736671840636,-500.0,9.998e-05,2]
[348607931,1736671840646,-500.0,9.998e-05,2]
[348607934,1736671840656,-500.0,9.998e-05,2]
[348607936,1736671840665,-500.0,9.998e-05,2]
[348607938,1736671840674,-636.18,9.998e-05,2]
[348607940,1736671840684,-500.0,9.998e-05,2]
[348607942,1736671840693,-500.0,9.998e-05,2]
[348607944,1736671840703,-500.0,9.998e-05,2]
[348607946,1736671840712,-500.0,9.998e-05,2]
[348607948,1736671840721,-2066.52244516,9.998e-05,2]
[348607950,1736671840731,-500.0,9.999e-05,2]
[348607952,1736671840740,-500.0,9.999e-05,2]
[348607954,1736671840750,-267.62817761,9.999e-05,2]
[348607956,1736671840759,-500.0,9.999e-05,2]
[348607958,1736671840768,-500.0,9.999e-05,2]
[348607960,1736671840778,-500.0,9.999e-05,2]
[348607962,1736671840787,-500.0,9.999e-05,2]
[348607964,1736671840796,-500.0,9.999e-05,2]
[348607966,1736671840806,-500.0,9.999e-05,2]
[348607968,1736671840816,-500.0,9.999e-05,2]
[348607970,1736671840825,-500.0,9.999e-05,2]
[348607972,1736671840835,-500.0,9.999e-05,2]
[348607974,1736671840845,-500.0,9.999e-05,2]
[348607976,1736671840854,-500.0,9.999e-05,2]
[348607978,1736671840864,-500.0,9.999e-05,2]
[348607980,1736671840873,-500.0,9.999e-05,2]
[348607982,1736671840882,-500.0,9.999e-05,2]
[348607984,1736671840891,-500.0,9.999e-05,2]
[348607986,1736671840900,-190.26021061,9.999e-05,2]
[348607988,1736671840909,-500.0,9.999e-05,2]
[348607990,1736671840919,-500.0,9.999e-05,2]
[348607992,1736671840928,-500.0,9.999e-05,2]
[348607994,1736671840938,-500.0,9.999e-05,2]
[348607996,1736671840947,-552.51,9.999e-05,2]
[348607998,1736671840956,-500.0,9.999e-05,2]
[348608000,1736671840966,-500.0,9.999e-05,2]
[348608002,1736671840979,-500.0,9.999e-05,2]
[348608004,1736671840988,-500.0,9.999e-05,2]
[348608006,1736671840997,-500.0,9.999e-05,2]
[348608008,1736671841006,-500.0,9.999e-05,2]
[348608010,1736671841015,-500.0,9.999e-05,2]
[348608012,1736671841024,-537.98,9.999e-05,2]
[348608014,1736671841034,-503.21358854,9.999e-05,2]
[348608016,1736671841043,-339.76727888,9.999e-05,2]
[348608018,1736671841055,-500.0,9.999e-05,2]
[348608020,1736671841064,-500.0,9.999e-05,2]
[348608022,1736671841073,-500.0,9.999e-05,2]
[348608024,1736671841082,-500.0,9.999e-05,2]
[348608026,1736671841092,-500.0,9.999e-05,2]
[348608028,1736671841102,-500.0,9.999e-05,2]
[348608030,1736671841111,-500.0,9.999e-05,2]
[348608032,1736671841121,-500.0,9.999e-05,2]
[348608034,1736671841130,-500.0,9.999e-05,2]
[348608036,1736671841139,-500.0,9.999e-05,2]
[348608038,1736671841149,-500.0,9.999e-05,2]
[348608040,1736671841158,-500.0,9.999e-05,2]
[348608042,1736671841167,-500.0,9.999e-05,2]
[348608044,1736671841177,-340.61339904,9.999e-05,2]
[348608046,1736671841186,-500.0,9.999e-05,2]
[348608048,1736671841195,-181.17219127,9.999e-05,2]
[348608050,1736671841205,-202.05115328,9.999e-05,2]
[348608052,1736671841214,-500.0,9.999e-05,2]
[348608055,1736671841224,-500.0,9.999e-05,2]
[348608057,1736671841233,-500.95,9.999e-05,2]
[348608059,1736671841242,-500.0,9.999e-05,2]
[348608061,1736671841251,-500.0,9.999e-05,2]
[348608063,1736671841261,-500.0,9.999e-05,2]
[348608065,1736671841271,-500.0,9.999e-05,2]
[348608067,1736671841280,-500.0,9.999e-05,2]
[348608069,1736671841290,-500.0,9.999e-05,2]
[348608071,1736671841299,-500.0,9.999e-05,2]
[348608073,1736671841308,-500.0,9.999e-05,2]
[348608075,1736671841317,-500.0,9.999e-05,2]
[348608077,1736671841326,-500.0,9.999e-05,2]
[348608079,1736671841335,-500.0,9.999e-05,2]
[348608081,1736671841345,-610.17,9.999e-05,2]
[348608083,1736671841354,-500.0,9.999e-05,2]
[348608085,1736671841363,-500.0,9.999e-05,2]
[348608087,1736671841373,-500.0,9.999e-05,2]
[348608089,1736671841382,-500.0,9.999e-05,2]
[348608091,1736671841391,-500.0,9.999e-05,2]
[348608093,1736671841401,-500.0,9.999e-05,2]
[348608095,1736671841410,-500.0,9.999e-05,2]
[348608097,1736671841419,-749.2,9.999e-05,2]
[348608099,1736671841429,-500.0,9.999e-05,2]
[348608101,1736671841438,-311.25607775,9.999e-05,2]
[348608103,1736671841447,-500.0,9.999e-05,2]
[348608105,1736671841456,-835.3,9.999e-05,2]
[348608107,1736671841465,-561.3,9.999e-05,2]
[348608109,1736671841474,-664.06,9.999e-05,2]
[348608111,1736671841484,-500.0,9.999e-05,2]
[348608113,1736671841493,-581.73,9.999e-05,2]
[348608115,1736671841502,-500.0,9.999e-05,2]
[348608117,1736671841511,-771.0,9.999e-05,2]
[348608119,1736671841521,-500.0,9.999e-05,2]
[348608121,1736671841530,-500.0,9.999e-05,2]
[348608123,1736671841539,-500.0,9.999e-05,2]
[348608125,1736671841549,-500.0,9.999e-05,2]
[348608127,1736671841559,-547.71,9.999e-05,2]
[348608129,1736671841570,-502.7078102,9.999e-05,2]